Cogmind - Beta 14 @@@ ROGUE MODE // 2024.11.10 @ 20:44:51 Player: Hinzy Result: Destroyed by S-10 Pest with Light Assault Rifle Performance ------------- Evolutions (1) 500 Regions Visited (3) 600 Robots Destroyed (25) 125 Value Destroyed (557) 557 Prototype IDs (2) 40 Alien Tech Used (0) 0 Bonus (252) 252 TOTAL SCORE: 2074 Bonus ------- Follower Combat Kills 301 Friendly Fire -49 Cogmind --------- Core Integrity 0/400 Matter 290/300 Energy 99/265 System Corruption 14% Temperature Cool (0) Movement Hovering (76) Location -9/Storage Parts ------- > --- POWER (1) -------- Improved Ion Engine > --- PROPULSION (3) --- Light Treads Hover Unit Hover Unit > --- UTILITY (3) ------ Sensor Array Signal Interpreter ECM Suite > --- WEAPON (2) ------- Hammer > --- INVENTORY (5) ---- Cooled Ion Engine Light Treads Visual Processing Unit Light Armor Plating EM Shotgun Peak State ------------ > --- POWER ------------ Light Ion Engine > --- PROPULSION ------- Airjet Airjet Airjet > --- UTILITY ---------- Medium Storage Unit Weight Redist. System Sensor Array > --- WEAPON ----------- EM Pulse Gun Heavy Flail > --- INVENTORY -------- Light Ion Engine Light Treads Light Treads Small Matter Pod Machine Analyzer Light Armor Plating Assault Rifle Light Cannon [Rating: 19] Favorites ----------- Power Improved Ion Engine Engine Improved Ion Engine Power Core Light Nuclear Core Propulsion Light Treads Treads Light Treads Leg Aluminum Leg Hover Unit Airjet Flight Unit Flight Unit Utility Sensor Array Device Sensor Array Storage Small Storage Unit Processor Signal Interpreter Protection Light Armor Plating Weapon EM Pulse Gun Energy Gun EM Pulse Gun Energy Cannon Light EM Pulse Cannon Ballistic Gun Heavy Assault Rifle Ballistic Cannon Light Cannon Impact Weapon Hammer Slashing Weapon Mining Claw Build | -11 -10 -9 -9 ------- Run | Yrd Mat Mat Sto Slots Evolved 2 | . . 2 . Power . | . . . . Propulsion 1 | . . 1 . Utility 1 | . . 1 . Weapon . | . . . . Parts Attached 64 | 7 9 24 24 Power 7 | 1 1 2 3 Engine 6 | 1 1 2 2 Core 1 | . . . 1 Reactor . | . . . . Propulsion 20 | 2 3 9 6 Treads 10 | . . 6 4 Leg 3 | 2 1 . . Wheel . | . . . . Hover 5 | . . 3 2 Flight 2 | . 2 . . Utility 15 | 2 2 6 5 Device 7 | 1 2 1 3 Storage 3 | 1 . 2 . Processor 2 | . . 1 1 Hackware . | . . . . Protection 3 | . . 2 1 Artifact . | . . . . Weapon 22 | 2 3 7 10 Energy Gun 7 | 2 . 3 2 Energy Cannon 6 | . . 2 4 Ballistic Gun 3 | . 1 . 2 Ballistic Cannon 2 | . 2 . . Launcher . | . . . . Special Weapon . | . . . . Impact Weapon 3 | . . 1 2 Slashing Weapon 1 | . . 1 . Piercing Weapon . | . . . . Special Melee Weapon . | . . . . Unidentified Prototypes 2 | . . 2 . Corrupted Parts 1 | . . 1 . System Corruption 2 | . . 2 . Parts Lost 12 | . 1 8 3 Power 3 | . . 2 1 Propulsion 6 | . 1 3 2 Utility 2 | . . 2 . Weapon 1 | . . 1 . Highest Loss Streak 8 | . 1 8 3 To Critical Strikes . | . . . . Average Slot Usage (%) 97 | . 98 92 99 Engine 10 | . 14 9 9 Treads 21 | . . 21 32 Leg 5 | . 18 . . Hover 2 | . . 9 . Flight 2 | . 9 . . Device 16 | . 20 10 17 Storage 3 | . 6 7 . Processor 7 | . . 7 11 Protection 3 | . . 6 4 Energy Gun 8 | . 20 6 3 Energy Cannon 5 | . . 6 7 Ballistic Gun 3 | . . . 5 Ballistic Cannon 2 | . 7 . . Impact Weapon 3 | . . 4 4 Peak Build Rating 19 | 9 10 19 17 Average Rating 12 | 5 8 15 13 On Entrance 8 | . 9 8 17 Naked Turns . | . . . . Heaviest Build 25 | 12 14 25 18 Greatest Support 66 | 20 20 66 66 Greatest Overweight (x) 4 | 3 4 1 . Average Overweight (x) . | . . . . Largest Inventory Capacity 10 | 8 8 10 5 Average Capacity 6 | 7 6 8 5 Most Carried 10 | 3 8 10 5 Average Carried 4 | 2 4 5 4 Final Capacity 8 | 8 5 5 5 Final Carried 5 | 3 5 5 5 Class Distribution -------------------- 74% | Mutant 25% | Scavenger-Mutant Dominant Class ---------------- Mutant | -10/Materials Mutant | -9/Materials Scavenger-Mutant | -9/Storage Resources | -11 -10 -9 -9 ----------- Run | Yrd Mat Mat Sto Matter Collected 945 | 186 196 102 461 Remotely . | . . . . Salvage Created 856 | 39 266 102 449 Parts 52 | 4 17 5 26 Haulers Intercepted 2 | . 1 . 1 Recyclers Shooed . | . . . . Parts Field Recycled . | . . . . Retrieved Matter . | . . . . Parts Self-Destructed . | . . . . Prevented . | . . . . Kills | -11 -10 -9 -9 ------- Run | Yrd Mat Mat Sto Combat Hostiles Destroyed 17 | . 6 2 9 Melee 1 | . . . 1 Guns 7 | . 3 . 4 Cannons 7 | . 2 2 3 AOE 1 | . . . 1 Classes Destroyed 8 | 1 5 1 1 Tunneler 2 | 2 . . . Hauler 2 | . 1 . 1 Recycler 2 | . 1 . 1 Watcher 2 | . 1 . 1 Swarmer 8 | . 4 . 4 Grunt 4 | . 2 . 2 Brawler 1 | . . . 1 Sentry 4 | . . 2 2 Best Kill Streak 5 | 2 5 2 4 Combat Bots Only 3 | . 3 2 3 Max Kills in Single Turn 1 | 1 1 1 1 Gunslinging . | . . . . Exploded 1 | . . . 1 Melee 1 | . . . 1 Uniques/NPCs Destroyed . | . . . . Combat | -11 -10 -9 -9 -------- Run | Yrd Mat Mat Sto Hostile Shots Fired 179 | . 36 92 51 Missed 49 | . 15 22 12 Damage Taken 2125 | . 191 1040 894 Core 448 | . 45 306 97 Absorbed by Shields . | . . . . Core Remaining (%) 91 | 100 82 . . Volleys Fired 70 | 5 30 3 32 Largest 2 | 2 2 1 2 Hottest 112 | 80 80 68 112 Shots Fired 111 | 10 46 3 52 Gun 86 | 10 34 . 42 Cannon 25 | . 12 3 10 Launcher . | . . . . Special . | . . . . Kinetic 39 | . 12 . 27 Thermal 24 | 5 16 3 . Explosive . | . . . . Electromagnetic 48 | 5 18 . 25 Robot Hit Streak 7 | 3 7 2 7 Robot Miss Streak 3 | 1 2 1 3 Penetration Max . | . . . . Secondary Targets 1 | . 1 . . Max Gunslinging Chain 1 | . 1 . . Shots Hit Robots 93 | 6 30 19 38 Core Hits 34 | 2 11 2 19 Critical Kills 1 | . . . 1 Critical Parts Destroyed 1 | . . . 1 Critical Strikes 3 | . 1 . 2 Corrupt 1 | . 1 . . Smash 2 | . . . 2 Melee Attacks 31 | . . 21 10 Impact 16 | . . 6 10 Slashing 15 | . . 15 . Piercing . | . . . . Sneak Attacks 1 | . . . 1 Combat Hostiles . | . . . . Follow-up Attacks . | . . . . Damage Inflicted 1907 | 81 505 411 910 Guns 712 | 73 295 . 344 Cannons 367 | . 151 41 175 Explosions 324 | . 59 . 265 Melee 496 | . . 370 126 Ramming 8 | 8 . . . Kinetic 405 | . 151 . 254 Thermal 502 | 31 165 41 265 Explosive . | . . . . Electromagnetic 496 | 42 189 . 265 Impact 242 | . . 116 126 Slashing 254 | . . 254 . Piercing . | . . . . Highest Corruption 14 | . . 2 14 Average Corruption 5 | . . 2 6 Corruption Purged . | . . . . Corruption Blocked . | . . . . Effects 31 | . . 2 29 Message Errors 9 | . . 1 8 Matter Fused 4 | . . . 4 Heat Flow Errors 5 | . . . 5 Energy Discharges 6 | . . . 6 Data Loss (minor) 2 | . . 1 1 Data Loss (major) 2 | . . . 2 Misfires 1 | . . . 1 Weapon Failures 2 | . . . 2 Overload Shots . | . . . . Overflow Damage 68 | . 16 1 51 Projectiles 16 | . 16 . . Explosions . | . . . . Melee 52 | . . 1 51 Knockbacks 5 | . 5 . . Impact . | . . . . Kinetic 3 | . 3 . . Secondary 2 | . 2 . . Self-Inflicted Damage 42 | . . . 42 Shots 1 | . . . 1 Rammed . | . . . . Targets Rammed 1 | 1 . . . Kicked 1 | 1 . . . Crushed . | . . . . Highest Temperature 226 | 90 202 21 226 Average Temperature 63 | 47 75 9 65 Received Heat Transfer 588 | . 42 396 150 Siege Activations . | . . . . Robots Corrupted 1 | . 1 . . Combat Hostiles 1 | . 1 . . Parts Fried 3 | . . 1 2 Impact Corruptions 4 | . 1 1 2 Robots Melted . | . . . . Combat Hostiles . | . . . . Parts Melted . | . . . . Heat Transferred 787 | 75 350 74 288 Parts Sabotaged . | . . . . Parts Stolen . | . . . . Parts Stripped . | . . . . Power Chain Reactions 3 | . 1 . 2 Alert | -11 -10 -9 -9 ------- Run | Yrd Mat Mat Sto Peak Influence 337 | 10 293 65 337 Initial 39 | . 6 39 . Average 100 | 2 123 43 121 Maximum Alert Level 1 | . 1 . 1 Low Security (%) 78 | 100 84 100 65 Level 1 21 | . 15 . 34 Level 2 . | . . . . Level 3 . | . . . . Level 4 . | . . . . Level 5 . | . . . . High Security . | . . . . Max Security . | . . . . Squads Dispatched 8 | . 4 1 3 Investigation 3 | . 2 1 . Extermination . | . . . . Reinforcement 3 | . 2 . 1 Assault 2 | . . . 2 Garrison . | . . . . Intercept . | . . . . Searches Triggered . | . . . . Construction Impeded . | . . . . Haulers Reinforced . | . . . . Active Scanning Responses . | . . . . Cargo Convoy Interrupts . | . . . . Stealth | -11 -10 -9 -9 --------- Run | Yrd Mat Mat Sto Distress Signals 4 | . 3 . 1 Communications Jammed . | . . . . Distress Signals . | . . . . Times Spotted 39 | . 10 2 27 Peak Tracking Total 12 | . 4 2 12 Tactical Retreats 3 | . 1 . 2 Traps | -11 -10 -9 -9 ------- Run | Yrd Mat Mat Sto Traps Triggered . | . . . . Indirectly . | . . . . Trap Hack Attempts . | . . . . Triggered . | . . . . Disarmed . | . . . . Reprogrammed . | . . . . Reused . | . . . . Traps Extracted . | . . . . Installed . | . . . . Triggered . | . . . . Machines | -11 -10 -9 -9 ---------- Run | Yrd Mat Mat Sto Machines Disabled 5 | . 2 . 3 Max in Single Turn 1 | . 1 . 1 Machines Repaired . | . . . . Machines Dismantled . | . . . . Machines Sabotaged . | . . . . Overloaded Fab Kills . | . . . . Hacking | -11 -10 -9 -9 --------- Run | Yrd Mat Mat Sto Machines Accessed 13 | . 5 4 4 Terminals 12 | . 4 4 4 Fabricators . | . . . . Repair Stations . | . . . . Recycling Units 1 | . 1 . . Scanalyzers . | . . . . Garrison Access . | . . . . Total Hacks 36 | . 17 11 8 Successful 19 | . 10 5 4 Failed 17 | . 7 6 4 Catastrophic 2 | . 1 . 1 Database Lockouts . | . . . . Manual 31 | . 15 11 5 Terminals 35 | . 16 11 8 Fabricators . | . . . . Repair Stations . | . . . . Recycling Units 1 | . 1 . . Scanalyzers . | . . . . Garrison Access . | . . . . Terminal Hacks 4 | . 2 . 2 Robot Analysis 1 | . 1 . . Open Door 1 | . . . 1 Terminal Index 1 | . . . 1 Zone Layout 1 | . 1 . . Fabricator Hacks . | . . . . Repair Station Hacks . | . . . . Recycling Unit Hacks 1 | . 1 . . Report Inventory 1 | . 1 . . Scanalyzer . | . . . . Garrison Access Hacks . | . . . . Unauthorized Hacks 14 | . 7 5 2 Terminals 14 | . 7 5 2 Track 3 | . 1 1 1 Assimilate 2 | . 1 1 . Botnet 4 | . 2 1 1 Disrupt 1 | . . 1 . Skim 4 | . 3 1 . Fabricators . | . . . . Repair Stations . | . . . . Recycling Units . | . . . . Scanalyzers . | . . . . Garrison Access . | . . . . Data Cores Recovered . | . . . . Used . | . . . . Hacking Detections 10 | . 5 3 2 Full Trace Events 3 | . 2 1 . Feedback Events . | . . . . Feedback Blocked . | . . . . Robot Schematics Acquired . | . . . . Robots Built . | . . . . Authchips . | . . . . Time . | . . . . Total Robot Build Rating . | . . . . Part Schematics Acquired . | . . . . Parts Built . | . . . . Authchips . | . . . . Time . | . . . . Total Part Build Rating . | . . . . Parts Repaired . | . . . . Time . | . . . . Parts Recycled . | . . . . Recycled Matter . | . . . . Retrieved Matter . | . . . . Retrieved Components . | . . . . Parts Scanalyzed . | . . . . Part Schematics Acquired . | . . . . Parts Damaged . | . . . . Bothacking | -11 -10 -9 -9 ------------ Run | Yrd Mat Mat Sto Used RIF Installer . | . . . . Robots Hacked . | . . . . Non-combat . | . . . . Combat . | . . . . Robot Hacks Applied . | . . . . Relay Couplers Released . | . . . . Fabnet Peak Effective % . | . . . . Robots Rewired . | . . . . Allies Hacked . | . . . . Hacks Repelled . | . . . . Allies | -11 -10 -9 -9 -------- Run | Yrd Mat Mat Sto Total Allies 2 | . . . 2 Largest Group 2 | . . . 2 Highest-Rated Group 62 | . . . 62 Highest-Rated Ally 31 | . . . 31 Total Orders . | . . . . Ally Attacks 47 | . . . 47 Total Damage 706 | . . . 706 Kills 14 | . . . 14 Allies Corrupted . | . . . . Allies Melted . | . . . . Intel | -11 -10 -9 -9 ------- Run | Yrd Mat Mat Sto Robot Analysis Total 1 | . 1 . . Derelict Logs Recovered . | . . . . Drone Launches . | . . . . Drone Recoveries . | . . . . Exploration | -11 -10 -9 -9 ------------- Run | Yrd Mat Mat Sto Turns Passed 2190 | 93 586 444 1067 Spaces Moved 1324 | 63 490 303 468 Core 24 | 23 1 . . Treads 609 | . . 146 463 Legs 263 | 40 223 . . Wheels . | . . . . Hover 157 | . . 152 5 Flight 271 | . 266 5 . Fastest Speed 37 | 50 37 50 76 Average Speed 114 | 101 79 106 159 Slowest Speed 280 | 200 280 160 160 Overloaded Moves . | . . . . Propulsion Burnouts . | . . . . Robots Hopped . | . . . . Cave-ins Triggered 1 | . . . 1 Exploration Rate (%) 28 | 5 60 14 34 Regions Visited 3 Branch Regions 1 Pre-discovered Areas . | . . . . Known Exits Taken . | . . . . Unknown Exits Taken 3 | 1 1 1 . Scrap Searched . | . . . . Spaces Dug 1 | . . . 1 Terrain Destroyed 10 | . . . 10 Melee 1 | . . . 1 Projectile . | . . . . AOE 9 | . . . 9 Terrain Rammed . | . . . . Walls Destroyed . | . . . . Machines Disabled . | . . . . Actions | -11 -10 -9 -9 --------- Run | Yrd Mat Mat Sto Total 1827 | 78 640 384 725 Wait 265 | . 96 10 159 Move 1321 | 62 489 302 468 Hop . | . . . . Pick Up 23 | 3 5 6 9 Fast Attach 34 | 7 5 11 11 Attach 13 | . 2 8 3 Detach 12 | . 3 6 3 Swap 17 | . 2 5 10 Drop 40 | . 8 12 20 Fire 70 | 5 30 3 32 Melee 31 | . . 21 10 Ram . | . . . . Kick 1 | 1 . . . Crush . | . . . . Escape Stasis . | . . . . Rewire . | . . . . Trap . | . . . . Miscellaneous . | . . . . Route ------- -11/Scrapyard -10/Materials (discovered 2 exits: *Mat / [*Min]) -9/Materials (discovered 2 exits: *Sto x2) -9/Storage History --------- Turn | Location | Event 8 | -11/Scrapyard | Discovered new exit (range 15) 94 | -11/Scrapyard | Entered Materials 315 | -10/Materials | Build established: Mutant 354 | -10/Materials | Discovered new exit (range 16) 600 | -10/Materials | Discovered new exit (range 15) 680 | -10/Materials | Entered another Materials area 680 | -9/Materials | Evolved 2 slots: Propulsion x1, Utility x1 681 | -9/Materials | Discovered new exit (range 13) 834 | -9/Materials | Core integrity fell below 50% 870 | -9/Materials | Lost 8 parts (2p3n2u1w) 972 | -9/Materials | Discovered new exit (range 12) 1124 | -9/Materials | Entered Storage 1338 | -9/Storage | Met a pair of Derelict thieves 1511 | -9/Storage | Core integrity fell below 20% 1774 | -9/Storage | Crushed by falling debris 1774 | -9/Storage | System corruption reached 10% 1805 | -9/Storage | Lost 3 parts (1p2n) 1837 | -9/Storage | Build established: Scavenger-Mutant 2191 | -9/Storage | Destroyed by S-10 Pest with Light Assault Rifle Last Messages --------------- 02173_ Acquired Hover Unit. 02173_ U-05 Engineer builds a Wall. 02176_ U-05 Engineer lays Concrete. 02176_ K-01 Serf collects debris. 02177_ U-05 Engineer lays Concrete. 02178_ M-13 Machinist destroyed. 02179_ U-05 Engineer lays Concrete. 02179_ K-01 Serf collects debris. 02180_ Acquired 51 matter. 02180_ U-05 Engineer lays Concrete. 02182_ K-01 Serf collects debris. 02182_ U-05 Engineer lays Concrete. 02183_ S-10 Pest suffers critical hit (Smash). 02183_ S-10 Pest destroyed. 02184_ U-05 Engineer lays Concrete. 02185_ K-01 Serf collects debris. 02185_ U-05 Engineer lays Concrete. 02188_ System corrupted: Matter fused (-10). 02188_ U-05 Engineer lays Concrete. 02188_ K-01 Serf collects debris. Map ----- +----------------------------------------------------+ | ?????????????# !!! ###?# ]= #% ##### | | ?????????????# !! %#???# # # | | ?????????????#####+##### #???# # # ]] | | ???????????????? ??# #???# # # ] | | ??????????????"" """ # #???########### # | | ???????????? """%""" # #?????### ##### # | | ??????????? """=""" # #?????# % ## # """ | | ???????????? [ #^^[#?????# ## # """ | | ???????????# ########### %####### """ ## # """ | | ???????????##???# [* + """ ##! %+ | | ????????????????# [ ##### # """ ##* # | | ????????????????# #???#"# ##[%=# | | ????????????????######## #####+#########%*|#= "T | | ???????????????????????# # !%% %+%%]%=[*#[ "" | | ???????????????????????# # """"[ ######+###### | | ???????????????????????# # "!! *#???#*!== #?? | | ???????????????????????# # "![" #???#T=*= #?? | | ???????????????????????# + "|= #??###" "##?? | | ???????????????????????# # "[!" #??# #?? | | ???????????????????????# # """" #??#!! #?? | | ?????????????????#######u # #??# ! !!#?? | | ???????????? T / ###########??#! !#?? | | ??????????? #####+#####?????????########?? | | ????????????????????# ] #??????????????????? | | ????????????????????# s """ #??????????????????? | | ????????????????????# """@"T" #??????????????????? | | ????????????????""" # uu=%= #??????????????????? | | ?????????????? """" #u ==*k= #??????????????????? | | ??????????? # %[ [ !#??????????????????? | | ??????????????????### !% = #??????????????????? | | ???????????????????## *[! #??????????????????? | | ????????????????????######### #??????????????????? | | ????????????????????????????###??????????????????? | | ?????????????????????????????????????????????????? | | ?????????????????????????????????????????????????? | | ?????????????????????????????????????????????????? | | ?????????????????????????????????????????????????? | | ??????????????????????????????x??????????????????? | | ?????????????????????????????????????????????????? | | ?????????????????????????????????????????????????? | | ?????????????????????????????????????????????????? | | ?????????????????????????????????????????????????? | | ?????????????????????????????????????????????????? | | ?????????????????????????????????????????????????? | | ?????????????????????????????????????????????????? | | ?????????????????????????????????????????????????? | | ?????????????????????????????????????????????????? | | ?????????????????????????????????????????????????? | | ?????????????????????????????????????????????????? | | ?????????????????????????????????????????????????? | +----------------------------------------------------+ Best States ------------- Heat Dissipation 38 Energy Generation 18 Energy Capacity 265 Matter Stores 300 Matter Capacity 350 Sight Range 16 Robot Scan Range 14 Terrain Scan Range 16 Terrain Scan Density 10 ECM Strength 1 Additional Mass Support 6 Armor Coverage 150 Weapon Shielding 33 Evasion (%) 62 Recoil Reduction 3 Item Schematics ----------------- None Robot Schematics ------------------ None Fabricated ------------ Nothing Alien Tech Used ----------------- None Achievements -------------- None Challenges ------------ None Game ------ Seed GyrokineticSwordKatana Manual? 0 Play Time 00:44:37 Cumulative 22.8 hours Start 2024.11.10 @ 20:02:36 End 2024.11.10 @ 20:44:51 Sessions 1 Manual Loads 0 Difficulty Rogue Special Mode None Game No. 16 Rogue 16 Adventurer 0 Explorer 0 Win Type - Total 0 Types 0/0/0/0/0/0/0/0/0 Lore% 9 Gallery% 21 Achievement% 19 Wizard Run 0 Options --------- Layout 1 ASCII 0 Keyboard 1 Movement Numpad Keybinds 0 Fullscreen 1 Font 24/Terminus Map View 50x35 Zoom Use 0% Tactical HUD 1 Map Filters NONE Filters NONE Steam 1 RUN: 52ae3eea-941b-4aff-889b-91af6b9f7b4b